fUST/lending_fUST_20250211
["ID","MTS","AMOUNT","RATE_DAILY","PERIOD"]
[352692266,1739243440379,-500.0,0.00010958,2]
[352692268,1739243440389,-538.81435722,0.00010958,2]
[352692270,1739243440398,-500.0,0.00010958,2]
[352692272,1739243440407,-500.0,0.00010958,2]
[352692274,1739243440417,-500.0,0.00010958,2]
[352692276,1739243440426,-541.52,0.00010958,2]
[352692278,1739243440435,-954.19,0.00010958,2]
[352692280,1739243440445,-508.17,0.00010958,2]
[352692282,1739243440455,-500.0,0.00010958,2]
[352692284,1739243440464,-500.0,0.00010958,2]
[352692286,1739243440475,-1016.49,0.00010958,2]
[352692288,1739243440484,-500.0,0.00010958,2]
[352692290,1739243440493,-500.0,0.00010958,2]
[352692292,1739243440503,-500.0,0.00010958,2]
[352692294,1739243440512,-500.0,0.00010958,2]
[352692296,1739243440522,-500.0,0.00010958,2]
[352692298,1739243440531,-500.0,0.00010958,2]
[352692300,1739243440541,-500.0,0.00010958,2]
[352692302,1739243440551,-778.91,0.00010958,2]
[352692304,1739243440560,-512.10596686,0.00010958,2]
[352692306,1739243440569,-151.0,0.00010958,2]
[352692308,1739243440578,-500.0,0.00010958,2]
[352692310,1739243440588,-500.0,0.00010958,2]
[352692312,1739243440597,-151.0,0.00010958,2]
[352692314,1739243440606,-151.0,0.00010958,2]
[352692316,1739243440616,-500.0,0.00010958,2]
[352692318,1739243440625,-500.0,0.00010958,2]
[352692320,1739243440635,-500.0,0.00010958,2]
[352692322,1739243440644,-1773.91,0.00010958,2]
[352692324,1739243440653,-500.0,0.00010958,2]
[352692326,1739243440662,-500.0,0.00010958,2]
[352692328,1739243440673,-500.0,0.00010958,2]
[352692330,1739243440683,-500.0,0.00010958,2]
[352692332,1739243440692,-500.0,0.00010958,2]
[352692334,1739243440702,-500.0,0.00010958,2]
[352692336,1739243440711,-500.0,0.00010958,2]
[352692338,1739243440720,-500.0,0.00010958,2]
[352692340,1739243440729,-500.0,0.00010958,2]
[352692342,1739243440739,-500.0,0.00010958,2]
[352692344,1739243440748,-500.0,0.00010958,2]
[352692346,1739243440757,-500.0,0.00010958,2]
[352692348,1739243440767,-500.0,0.00010958,2]
[352692350,1739243440777,-500.0,0.00010958,2]
[352692352,1739243440786,-500.0,0.00010958,2]
[352692354,1739243440795,-618.32330659,0.00010958,2]
[352692356,1739243440805,-500.0,0.00010958,2]
[352692358,1739243440814,-510.22815679,0.00010958,2]
[352692360,1739243440824,-500.0,0.00010958,2]
[352692362,1739243440833,-307.08880127,0.00010958,2]
[352692364,1739243440843,-500.0,0.00010958,2]
[352692365,1739243440852,-500.0,0.00010958,2]
[352692367,1739243440863,-1778.9,0.00010958,2]
[352692368,1739243440872,-500.0,0.00010958,2]
[352692369,1739243440883,-640.03773158,0.00010958,2]
[352692370,1739243440893,-500.0,0.00010958,2]
[352692371,1739243440903,-500.0,0.00010958,2]
[352692372,1739243440913,-500.0,0.00010958,2]
[352692373,1739243440923,-500.0,0.00010958,2]
[352692374,1739243440932,-500.0,0.00010958,2]
[352692375,1739243440942,-1421.0,0.00010958,2]
[352692376,1739243440951,-500.0,0.00010958,2]
[352692377,1739243440962,-500.0,0.00010958,2]
[352692378,1739243440972,-500.0,0.00010958,2]
[352692379,1739243440982,-500.0,0.00010958,2]
[352692380,1739243440992,-500.0,0.00010958,2]
[352692381,1739243441001,-500.0,0.00010958,2]
[352692382,1739243441010,-613.9623905,0.00010958,2]
[352692383,1739243441020,-500.0,0.00010958,2]
[352692384,1739243441030,-581.55,0.00010958,2]
[352692385,1739243441040,-500.0,0.00010958,2]
[352692386,1739243441050,-500.0,0.00010958,2]
[352692387,1739243441060,-500.0,0.00010958,2]
[352692388,1739243441069,-500.0,0.00010958,2]
[352692389,1739243441079,-500.0,0.00010958,2]
[352692390,1739243441088,-1062.83,0.00010958,2]
[352692391,1739243441098,-500.0,0.00010958,2]
[352692392,1739243441107,-500.0,0.00010958,2]
[352692393,1739243441117,-500.0,0.00010958,2]
[352692394,1739243441127,-500.0,0.00010958,2]
[352692395,1739243441136,-500.0,0.00010958,2]
[352692396,1739243441145,-500.0,0.00010958,2]
[352692397,1739243441155,-500.0,0.00010958,2]
[352692398,1739243441164,-503.74,0.00010958,2]
[352692399,1739243441173,-508.86073864,0.00010958,2]
[352692401,1739243441182,-1047.9,0.00010958,2]
[352692403,1739243441191,-500.0,0.00010958,2]
[352692405,1739243441200,-525.77,0.00010958,2]
[352692407,1739243441209,-500.0,0.00010958,2]
[352692409,1739243441218,-500.0,0.00010958,2]
[352692411,1739243441227,-500.0,0.00010958,2]
[352692413,1739243441236,-500.0,0.00010958,2]
[352692415,1739243441245,-2184.05,0.00010958,2]
[352692417,1739243441255,-500.0,0.00010958,2]
[352692419,1739243441264,-500.0,0.00010958,2]
[352692421,1739243441274,-500.0,0.00010958,2]
[352692423,1739243441285,-503.32,0.00010958,2]
[352692425,1739243441295,-500.0,0.00010958,2]
[352692427,1739243441305,-500.0,0.00010958,2]
[352692429,1739243441314,-500.0,0.00010958,2]
[352692430,1739243441325,-377.27937376,0.00010958,2]
[352692432,1739243441335,-500.0,0.00010958,2]
[352692434,1739243441344,-696.11,0.00010958,2]
[352692437,1739243441354,-422.60035826,0.00010958,2]
[352692489,1739243441843,-396.0,0.00010942,2]
[352692491,1739243441856,-604.0,0.00010958,2]
[352693108,1739244632770,-300.0,9.86e-05,2]
[352693109,1739244632780,-5399.06720805,9.861e-05,2]
[352693110,1739244632791,-252.76129741,9.861e-05,2]
[352693212,1739244643581,-500.0,9.861e-05,2]
[352693559,1739244646478,-976.0,9.861e-05,2]
[352694442,1739245838673,-1362.0279742,9.823e-05,2]
[352694443,1739245838685,-432.11095823,9.823e-05,2]
[352694511,1739245840677,-1234.56900883,9.823e-05,2]
[352694613,1739245843551,-354.86630482,9.823e-05,2]
[352694614,1739245843709,-2334.52853655,9.823e-05,2]
[352695772,1739247038709,-344.5171606,9.419e-05,2]
[352695773,1739247038718,-5000.0,9.482e-05,2]
[352695774,1739247038728,-300.0,9.578e-05,2]
[352695775,1739247038738,-24900.0,9.579e-05,2]
[352695776,1739247038747,-2051.0,9.822e-05,2]
[352695777,1739247038756,-9687.24689242,9.864e-05,2]
[352695778,1739247038768,-685.98432837,9.864e-05,2]
[352695779,1739247038779,-2249.2778532,9.864e-05,2]
[352695780,1739247038790,-9077.65360332,0.00010317,2]
[352695849,1739247043734,-1410.61397912,0.00010317,2]
[352695872,1739247046769,-2134.24149155,0.00010317,2]
[352695874,1739247046779,-308.1914392,0.000104,2]
[352695876,1739247046788,-151.740085,0.00010449,2]
[352695878,1739247046797,-278.381172,0.00010449,2]
[352695880,1739247046807,-278.381172,0.00010449,2]
[352695882,1739247046817,-310.4245019,0.000105,2]
[352695884,1739247046826,-153.0,0.000105,2]
[352695886,1739247046835,-420.0,0.00010536,2]
[352695888,1739247046844,-6891.01229125,0.00010559,2]
[352696168,1739248004753,-1000.0,0.00013589,30]
[352696169,1739248004782,-1000.0,0.00013589,30]
[352696170,1739248004813,-1000.0,0.00013589,30]
[352696171,1739248004843,-1000.0,0.00013589,30]
[352696172,1739248004873,-1000.0,0.00013589,30]
[352696173,1739248004904,-1000.0,0.00013589,30]
[352696174,1739248004935,-1000.0,0.00013589,30]
[352696175,1739248004966,-1000.0,0.00013589,30]
[352696176,1739248005000,-1000.0,0.00013589,30]
[352696177,1739248005031,-1000.0,0.00013589,30]
[352696178,1739248005124,-180843.65034794,0.00014,30]
[352696179,1739248005153,-2000.0,0.00014,30]
[352696180,1739248005181,-2000.0,0.00014,30]
[352696181,1739248005211,-2000.0,0.00014,30]
[352696182,1739248005237,-2000.0,0.00014,30]
[352696183,1739248005260,-1156.34965206,0.00014,30]
[352696330,1739248238232,-909.84501414,9.67e-05,2]
[352696332,1739248238242,-105.82494848,9.768e-05,2]
[352696523,1739248240083,-194.17505152,9.768e-05,2]
[352696525,1739248240093,-158.68884648,9.769e-05,2]
[352696531,1739248240141,-650.65101388,9.769e-05,2]
[352696756,1739248242954,-375.481998,9.769e-05,2]
[352696758,1739248242967,-734.3962012,9.769e-05,2]
[352696761,1739248242978,-536.71065416,9.769e-05,2]
[352696763,1739248242990,-358.08949814,9.769e-05,2]
[352696765,1739248243002,-1085.07349445,9.769e-05,2]
[352696772,1739248243066,-2062.72057481,9.769e-05,2]
[352696842,1739248245994,-572.5,9.769e-05,2]
[352696917,1739249432384,-300.0,9.736e-05,2]
[352696919,1739249432393,-6763.79749803,9.737e-05,2]
[352696921,1739249432406,-298.20582391,9.737e-05,2]
[352696926,1739249432443,-1558.86644373,9.737e-05,2]
[352697372,1739249438166,-16279.13023433,9.737e-05,2]
[352697374,1739249438176,-13268.2024785,0.00010066,2]
[352697377,1739249438185,-465.862351,0.000103,2]
[352697379,1739249438197,-13268.2024785,0.00010333,2]
[352697381,1739249438207,-1002.9797588,0.00010453,2]
[352697383,1739249438216,-150.0,0.00010551,2]
[352697385,1739249438225,-1970.0,0.00010551,2]
[352697387,1739249438234,-538.0,0.00010551,2]
[352697388,1739249438244,-2294.0,0.00010551,2]
[352697390,1739249438254,-396.0,0.00010551,2]
[352697393,1739249438264,-5296.38591282,0.00010565,2]
[352697395,1739249438276,-3810.99269599,0.00010565,2]
[352697398,1739249438296,-4160.82386969,0.00010565,2]
[352697400,1739249438305,-404.2546208,0.00010599,2]
[352697402,1739249438315,-433.3851362,0.000106,2]
[352697404,1739249438324,-215.860309,0.000106,2]
[352697418,1739249438334,-215.860309,0.000106,2]
[352697419,1739249438491,-162.9559869,0.000106,2]
[352697420,1739249438501,-154.7221534,0.000106,2]
[352697421,1739249438511,-215.860309,0.000106,2]
[352697422,1739249438519,-154.6993501,0.000106,2]
[352697423,1739249438529,-650.8504117,0.000106,2]
[352697424,1739249438540,-215.860309,0.000106,2]
[352697425,1739249438549,-153.0,0.000106,2]
[352697426,1739249438558,-154.5736464,0.000106,2]
[352697427,1739249438567,-153.0,0.000106,2]
[352697428,1739249438577,-215.860309,0.000106,2]
[352697429,1739249438587,-354.876058,0.000106,2]
[352697430,1739249438596,-306.0,0.000106,2]
[352697431,1739249438605,-354.876058,0.000106,2]
[352697432,1739249438615,-153.0,0.000106,2]
[352697433,1739249438624,-215.860309,0.000106,2]
[352697434,1739249438634,-354.5661613,0.000106,2]
[352697435,1739249438643,-153.0,0.000106,2]
[352697436,1739249438652,-215.860309,0.000106,2]
[352697437,1739249438661,-153.0,0.00010658,2]
[352697438,1739249438671,-217.2915702,0.00010658,2]
[352697439,1739249438679,-153.0,0.00010658,2]
[352697440,1739249438689,-153.0,0.00010658,2]
[352697441,1739249438698,-400.0,0.00010685,2]
[352697442,1739249438707,-150.09,0.00010709,2]
[352697443,1739249438716,-420.0,0.0001071,2]
[352697444,1739249438725,-1000.0,0.000108,2]
[352697445,1739249438734,-1000.0,0.000108,3]
[352697446,1739249438743,-821.82,0.000108,4]
[352697447,1739249438752,-153.0,0.000108,2]
[352697448,1739249438762,-354.7727591,0.000108,2]
[352697449,1739249438771,-153.0,0.000108,2]
[352697450,1739249438780,-215.48356,0.000108,2]
[352697451,1739249438789,-153.0,0.000108,2]
[352697452,1739249438798,-215.860309,0.000108,2]
[352697453,1739249438807,-153.0,0.000108,2]
[352697454,1739249438817,-153.0,0.000108,2]
[352697455,1739249438827,-712.6543302,0.000108,2]
[352697456,1739249438836,-153.0,0.000108,2]
[352697457,1739249438845,-709.5455182,0.000108,2]
[352697458,1739249438854,-153.0,0.000108,2]
[352697459,1739249438863,-153.0,0.000108,2]
[352697460,1739249438872,-215.860309,0.000108,2]
[352697461,1739249438881,-215.6719345,0.000108,2]
[352697462,1739249438891,-153.0,0.000108,2]
[352697463,1739249438900,-215.7975175,0.000108,2]
[352697464,1739249438909,-153.0,0.000108,2]
[352697465,1739249438919,-153.0,0.000108,2]
[352697466,1739249438928,-215.860309,0.000108,2]
[352697467,1739249438938,-153.0,0.000108,2]
[352697468,1739249438947,-153.0,0.000108,2]
[352697469,1739249438956,-215.860309,0.000108,2]
[352697470,1739249438972,-215.860309,0.000108,2]
[352697471,1739249438982,-153.0,0.000108,2]
[352697472,1739249438991,-153.0,0.000108,2]
[352697473,1739249439004,-215.860309,0.000108,2]
[352697474,1739249439012,-215.860309,0.000108,2]
[352697475,1739249439022,-215.860309,0.000108,2]
[352697476,1739249439032,-153.0,0.000108,2]
[352697477,1739249439043,-215.860309,0.000108,2]
[352697478,1739249439052,-250.543055,0.000108,2]
[352697479,1739249439062,-250.543055,0.000108,2]
[352697480,1739249439071,-250.543055,0.0001081,2]
[352697481,1739249439080,-250.543055,0.0001081,2]
[352697482,1739249439090,-151.0,0.00010858,2]
[352697483,1739249439099,-250.543055,0.00010858,2]
[352697484,1739249439108,-250.543055,0.00010858,2]
[352697485,1739249439117,-5950.66998165,0.00010858,2]
[352697486,1739249439129,-4386.9978675,0.00010858,2]
[352697506,1739249440323,-2007.48,0.00010858,2]
[352697507,1739249440342,-2099.02345567,0.00010858,2]
[352697550,1739249443164,-612.004984,0.00010858,2]
[352697551,1739249443176,-815.0,0.00010858,2]
[352697552,1739249443330,-9625.99804572,0.00010858,2]
[352697584,1739249446208,-9143.19212152,0.00010858,2]
[352697585,1739249446219,-1170.67743351,0.0001095,2]
[352697586,1739249446229,-10514.3750123,0.00010956,2]
[352697654,1739250632517,-746.335558,9.572e-05,2]
[352697657,1739250632529,-1000.45850001,9.572e-05,2]
[352697659,1739250632541,-842.93615671,9.572e-05,2]
[352697661,1739250632550,-300.0,9.864e-05,2]
[352697663,1739250632560,-3734.89445672,9.865e-05,2]
[352697666,1739250632578,-21165.10554328,9.865e-05,2]
[352697668,1739250632587,-150.0,0.00010669,2]
[352697670,1739250632597,-537.213,0.00010669,2]
[352697672,1739250632607,-1970.0,0.00010669,2]
[352697674,1739250632616,-2294.0,0.00010669,2]
[352697676,1739250632626,-396.0,0.00010669,2]
[352697678,1739250632637,-400.0,0.00010685,2]
[352697680,1739250632648,-1045.8453631,0.00010846,2]
[352697682,1739250632658,-168.09334346,0.00010851,2]
[352697684,1739250632669,-251.90665654,0.00010851,2]
[352697686,1739250632679,-1000.39422757,0.00010857,2]
[352697688,1739250632689,-314.564,0.00010857,2]
[352697690,1739250632698,-745.93511589,0.00010858,2]
[352697784,1739250638231,-6789.51867919,0.00010858,2]
[352697785,1739250638241,-153.0,0.00010871,2]
[352697786,1739250638250,-10000.0,0.000109,2]
[352697787,1739250638259,-284.4583684,0.00010955,2]
[352697788,1739250638269,-37611.76259383,0.00010956,2]
[352697789,1739250638278,-17639.59967533,0.00010957,2]
[352697790,1739250638287,-665.4920235,0.00010958,2]
[352697791,1739250638304,-155.8679765,0.00010958,2]
[352697792,1739250638314,-500.0,0.00010958,2]
[352697794,1739250638323,-418.12014798,0.00010958,2]
[352697796,1739250638332,-500.0,0.00010958,2]
[352697797,1739250638341,-500.0,0.00010958,2]
[352697798,1739250638351,-437.45758093,0.00010958,2]
[352697799,1739250638360,-500.32963408,0.00010958,2]
[352697800,1739250638369,-500.0,0.00010958,2]
[352697801,1739250638378,-247.11491866,0.00010958,2]
[352697803,1739250638388,-206.53333869,0.00010958,2]
[352697805,1739250638398,-312.67526972,0.00010958,2]
[352697807,1739250638408,-500.0,0.00010958,2]
[352697808,1739250638417,-501.25819024,0.00010958,2]
[352697811,1739250638426,-153.54399883,0.00010958,2]
[352697812,1739250638435,-500.0,0.00010958,2]
[352697813,1739250638444,-500.0,0.00010958,2]
[352697814,1739250638453,-500.0,0.00010958,2]
[352697815,1739250638462,-500.0,0.00010958,2]
[352697816,1739250638471,-500.95465094,0.00010958,2]
[352697817,1739250638481,-500.0,0.00010958,2]
[352697819,1739250638490,-520.92,0.00010958,2]
[352697820,1739250638499,-500.0,0.00010958,2]
[352697821,1739250638508,-500.0,0.00010958,2]
[352697822,1739250638518,-500.0,0.00010958,2]
[352697823,1739250638527,-500.0,0.00010958,2]
[352697824,1739250638535,-500.0,0.00010958,2]
[352697825,1739250638544,-500.0,0.00010958,2]
[352697826,1739250638554,-500.0,0.00010958,2]
[352697827,1739250638564,-500.0,0.00010958,2]
[352697828,1739250638703,-500.0,0.00010958,2]
[352697829,1739250638713,-500.0,0.00010958,2]
[352697830,1739250638723,-500.0,0.00010958,2]
[352697831,1739250638732,-500.0,0.00010958,2]
[352697832,1739250638742,-500.0,0.00010958,2]
[352697833,1739250638751,-500.0,0.00010958,2]
[352697834,1739250638760,-500.0,0.00010958,2]
[352697835,1739250638769,-500.0,0.00010958,2]
[352697836,1739250638779,-500.0,0.00010958,2]
[352697837,1739250638788,-679.1574836,0.00010958,2]
[352697838,1739250638803,-215.3625164,0.00010958,2]
[352697839,1739250638812,-500.0,0.00010958,2]
[352697840,1739250638821,-500.0,0.00010958,2]
[352697841,1739250638830,-500.0,0.00010958,2]
[352697842,1739250638840,-500.0,0.00010958,2]
[352697843,1739250638849,-504.12718442,0.00010958,2]
[352697844,1739250638858,-500.0,0.00010958,2]
[352697845,1739250638867,-319.03213371,0.00010958,2]
[352697846,1739250638879,-545.26786629,0.00010958,2]
[352697847,1739250638889,-500.0,0.00010958,2]
[352697848,1739250638898,-500.0,0.00010958,2]
[352697849,1739250638907,-322.04660164,0.00010958,2]
[352697850,1739250638916,-500.0,0.00010958,2]
[352697851,1739250638926,-500.0,0.00010958,2]
[352697852,1739250638935,-500.0,0.00010958,2]
[352697853,1739250638945,-500.0,0.00010958,2]
[352697854,1739250638954,-201.76857701,0.00010958,2]
[352697901,1739250642605,-298.23142299,0.00010958,2]
[352697903,1739250642615,-267.94009701,0.00010958,2]
[352697909,1739250642664,-232.05990299,0.00010958,2]
[352697912,1739250642673,-102.92133929,0.00010958,2]
[352697916,1739250642686,-397.07866071,0.00010958,2]
[352697919,1739250642697,-0.99733929,0.00010958,2]
[352698016,1739250643520,-499.00266071,0.00010958,2]
[352698018,1739250643529,-104.99733929,0.00010958,2]
[352698020,1739250643541,-395.00266071,0.00010958,2]
[352698022,1739250643551,-500.0,0.00010958,2]
[352698024,1739250643560,-500.0,0.00010958,2]
[352698026,1739250643569,-500.0,0.00010958,2]
[352698028,1739250643579,-500.0,0.00010958,2]
[352698030,1739250643588,-245.79686683,0.00010958,2]
[352698329,1739250646529,-254.20313317,0.00010958,2]
[352698331,1739250646539,-500.0,0.00010958,2]
[352698333,1739250646548,-151.0,0.00010958,2]
[352698335,1739250646560,-151.0,0.00010958,2]
[352698337,1739250646569,-151.0,0.00010958,2]
[352698339,1739250646578,-151.0,0.00010958,2]
[352698341,1739250646588,-151.0,0.00010958,2]
[352698343,1739250646598,-151.0,0.00010958,2]
[352698345,1739250646608,-157.853824,0.00010958,2]
[352698347,1739250646619,-863.16,0.00010958,2]
[352698349,1739250646628,-500.0,0.00010958,2]
[352698351,1739250646638,-500.0,0.00010958,2]
[352698353,1739250646651,-500.0,0.00010958,2]
[352698355,1739250646660,-502.68,0.00010958,2]
[352698357,1739250646669,-240.70488965,0.00010958,2]
[352698359,1739250646679,-500.0,0.00010958,2]
[352698361,1739250646689,-500.0,0.00010958,2]
[352698363,1739250646699,-500.0,0.00010958,2]
[352698365,1739250646708,-604.94795383,0.00010958,2]
[352698367,1739250646717,-500.0,0.00010958,2]
[352698369,1739250646727,-500.0,0.00010958,2]
[352698371,1739250646737,-500.0,0.00010958,2]
[352698373,1739250646747,-500.0,0.00010958,2]
[352698375,1739250646756,-500.0,0.00010958,2]
[352698377,1739250646766,-500.0,0.00010958,2]
[352698379,1739250646775,-500.0,0.00010958,2]
[352698381,1739250646785,-500.0,0.00010958,2]
[352698383,1739250646794,-500.0,0.00010958,2]
[352698385,1739250646808,-206.88088062,0.00010958,2]
[352698387,1739250646819,-500.0,0.00010958,2]
[352698389,1739250646829,-500.0,0.00010958,2]
[352698391,1739250646838,-502.8704017,0.00010958,2]
[352698393,1739250646848,-500.0,0.00010958,2]
[352698395,1739250646858,-404.86424587,0.00010958,2]
[352698397,1739250646868,-502.98372253,0.00010958,2]
[352698399,1739250646878,-500.0,0.00010958,2]
[352698401,1739250646888,-505.39028804,0.00010958,2]
[352698403,1739250646898,-500.0,0.00010958,2]
[352698405,1739250646908,-500.0,0.00010958,2]
[352698407,1739250646917,-500.0,0.00010958,2]
[352698409,1739250646927,-500.0,0.00010958,2]
[352698411,1739250646936,-506.24839808,0.00010958,2]
[352698413,1739250646945,-500.0,0.00010958,2]
[352698415,1739250646954,-500.0,0.00010958,2]
[352698417,1739250646963,-500.0,0.00010958,2]
[352698419,1739250646973,-342.08526684,0.00010958,2]
[352698421,1739250646982,-500.0,0.00010958,2]
[352698423,1739250646992,-500.0,0.00010958,2]
[352698425,1739250647002,-500.0,0.00010958,2]
[352698427,1739250647013,-500.0,0.00010958,2]
[352698429,1739250647022,-500.0,0.00010958,2]
[352698431,1739250647032,-510.76509543,0.00010958,2]
[352698434,1739250647042,-500.0,0.00010958,2]
[352698436,1739250647051,-500.0,0.00010958,2]
[352698437,1739250647061,-500.0,0.00010958,2]
[352698440,1739250647071,-508.08920897,0.00010958,2]
[352698442,1739250647080,-500.0,0.00010958,2]
[352698443,1739250647090,-500.0,0.00010958,2]
[352698446,1739250647099,-500.0,0.00010958,2]
[352698447,1739250647108,-350.67665639,0.00010958,2]
[352698449,1739250647118,-916.65,0.00010958,2]
[352698452,1739250647128,-500.0,0.00010958,2]
[352698454,1739250647137,-515.57989378,0.00010958,2]
[352698456,1739250647147,-500.0,0.00010958,2]
[352698458,1739250647156,-500.0,0.00010958,2]
[352698460,1739250647165,-500.0,0.00010958,2]
[352698462,1739250647174,-500.0,0.00010958,2]
[352698464,1739250647184,-500.0,0.00010958,2]
[352698466,1739250647193,-631.47933974,0.00010958,2]
[352698468,1739250647202,-500.0,0.00010958,2]
[352698470,1739250647211,-500.0,0.00010958,2]
[352698472,1739250647220,-500.0,0.00010958,2]
[352698474,1739250647229,-500.0,0.00010958,2]
[352698476,1739250647239,-500.0,0.00010958,2]
[352698478,1739250647248,-500.0,0.00010958,2]
[352698480,1739250647257,-605.59,0.00010958,2]
[352698482,1739250647267,-500.0,0.00010958,2]
[352698484,1739250647276,-500.0,0.00010958,2]
[352698486,1739250647285,-500.0,0.00010958,2]
[352698488,1739250647294,-500.0,0.00010958,2]
[352698490,1739250647307,-1015.56,0.00010958,2]
[352698492,1739250647317,-500.0,0.00010958,2]
[352698494,1739250647326,-500.0,0.00010958,2]
[352698496,1739250647335,-500.0,0.00010958,2]
[352698498,1739250647345,-500.0,0.00010958,2]
[352698500,1739250647355,-500.0,0.00010958,2]
[352698502,1739250647365,-500.0,0.00010958,2]
[352698504,1739250647375,-500.0,0.00010958,2]
[352698506,1739250647384,-500.0,0.00010958,2]
[352698508,1739250647394,-500.0,0.00010958,2]
[352698510,1739250647403,-508.50824965,0.00010958,2]
[352698512,1739250647412,-826.82,0.00010958,2]
[352698514,1739250647422,-500.0,0.00010958,2]
[352698516,1739250647432,-500.0,0.00010958,2]
[352698518,1739250647442,-502.50848014,0.00010958,2]
[352698520,1739250647452,-687.35,0.00010958,2]
[352698522,1739250647463,-1216.39,0.00010958,2]
[352698524,1739250647473,-745.55,0.00010958,2]
[352698526,1739250647483,-500.0,0.00010958,2]
[352698528,1739250647492,-500.0,0.00010958,2]
[352698530,1739250647502,-500.0,0.00010958,2]
[352698532,1739250647512,-500.0,0.00010958,2]
[352698534,1739250647522,-500.0,0.00010958,2]
[352698536,1739250647532,-500.0,0.00010958,2]
[352698538,1739250647543,-500.0,0.00010958,2]
[352698540,1739250647555,-500.0,0.00010958,2]
[352698542,1739250647564,-500.0,0.00010958,2]
[352698544,1739250647574,-466.55137518,0.00010958,2]
[352698546,1739250647584,-500.0,0.00010958,2]
[352698548,1739250647594,-501.38443867,0.00010958,2]
[352698550,1739250647604,-500.0,0.00010958,2]
[352698552,1739250647614,-500.0,0.00010958,2]
[352698554,1739250647624,-500.0,0.00010958,2]
[352698556,1739250647633,-500.0,0.00010958,2]
[352698558,1739250647644,-503.47998645,0.00010958,2]
[352698560,1739250647656,-1534.91,0.00010958,2]
[352698563,1739250647666,-500.0,0.00010958,2]
[352698564,1739250647675,-776.47,0.00010958,2]
[352698567,1739250647686,-500.0,0.00010958,2]
[352698568,1739250647696,-500.0,0.00010958,2]
[352698571,1739250647706,-236.54248838,0.00010958,2]
[352698572,1739250647715,-509.8850964,0.00010958,2]
[352698575,1739250647727,-500.0,0.00010958,2]
[352698577,1739250647737,-1184.32,0.00010958,2]
[352698578,1739250647747,-500.0,0.00010958,2]
[352698581,1739250647756,-500.0,0.00010958,2]
[352698582,1739250647766,-500.0,0.00010958,2]
[352698584,1739250647776,-500.0,0.00010958,2]
[352698586,1739250647786,-500.0,0.00010958,2]
[352698588,1739250647794,-500.0,0.00010958,2]
[352698590,1739250647805,-500.0,0.00010958,2]
[352698592,1739250647816,-500.0,0.00010958,2]
[352698594,1739250647826,-500.0,0.00010958,2]
[352698596,1739250647835,-500.0,0.00010958,2]
[352698598,1739250647844,-500.0,0.00010958,2]
[352698600,1739250647855,-185.72670775,0.00010958,2]
[352698602,1739250647864,-500.0,0.00010958,2]
[352698604,1739250647874,-500.0,0.00010958,2]
[352698606,1739250647883,-500.0,0.00010958,2]
[352698608,1739250647893,-500.0,0.00010958,2]
[352698610,1739250647902,-500.0,0.00010958,2]
[352698612,1739250647912,-500.0,0.00010958,2]
[352698615,1739250647922,-500.0,0.00010958,2]
[352698617,1739250647932,-500.0,0.00010958,2]
[352698619,1739250647942,-500.0,0.00010958,2]
[352698620,1739250647951,-500.0,0.00010958,2]